fUST/lending_fUST_20250815
["ID","MTS","AMOUNT","RATE_DAILY","PERIOD"]
[379229112,1755199844168,-449.63201855,0.00017973,2]
[379229113,1755199844176,-500.0,0.00017973,2]
[379229114,1755199844186,-500.0,0.00017973,2]
[379229115,1755199844196,-500.0,0.00017973,2]
[379229116,1755199844205,-500.0,0.00017973,2]
[379229118,1755199844214,-500.0,0.00017973,2]
[379229120,1755199844223,-322.9495201,0.00017973,2]
[379229122,1755199844233,-646.92772339,0.00017974,2]
[379229123,1755199844242,-253.60804198,0.00017975,2]
[379229125,1755199844252,-37163.02077846,0.00017975,2]
[379229199,1755199845987,-4203.76456134,0.00017975,2]
[379229211,1755199846096,-12323.4385278,0.00017975,2]
[379231323,1755200098084,528.19044044,0.0003,120]
[379231326,1755200408563,528.19044044,0.0003,120]
[379231328,1755200440877,366.600722,0.00013699,2]
[379231339,1755200718323,528.19044044,0.0003,120]
[379231352,1755201027921,528.19044044,0.0003,120]
[379231381,1755201035286,-1835.09878962,0.00016524,2]
[379231526,1755201038221,-8164.90121038,0.00016524,2]
[379231528,1755201038231,-300.0,0.00017248,2]
[379231530,1755201038240,-215.59581046,0.0001725,2]
[379231532,1755201038250,-461.9529908,0.0001725,2]
[379231534,1755201038259,-160.0,0.00017251,2]
[379231536,1755201038269,-160.0,0.00017251,2]
[379231538,1755201038279,-160.0,0.00017251,2]
[379231540,1755201038288,-843.37884167,0.00017251,2]
[379231542,1755201038297,-292.71022631,0.00017252,2]
[379231544,1755201038306,-460.0,0.00017252,2]
[379231546,1755201038316,-408.0,0.00017444,2]
[379231548,1755201038325,-264.53,0.00017444,2]
[379231550,1755201038334,-460.0,0.00017525,2]
[379231552,1755201038343,-460.0,0.00017525,2]
[379231553,1755201038352,-460.0,0.00017525,2]
[379231556,1755201038362,-1004.70489892,0.00017771,2]
[379231557,1755201038371,-460.71095459,0.00017799,2]
[379231560,1755201038380,-460.0,0.00017799,2]
[379231562,1755201038390,-460.0,0.00017799,2]
[379231564,1755201038399,-460.0,0.00017799,2]
[379231566,1755201038408,-460.0,0.00017799,2]
[379231568,1755201038417,-460.0,0.00017799,2]
[379231569,1755201038426,-460.0,0.00017799,2]
[379231571,1755201038435,-460.0,0.00017799,2]
[379231574,1755201038444,-460.0,0.00017799,2]
[379231575,1755201038454,-460.0,0.00017799,2]
[379231577,1755201038463,-460.0,0.00017799,2]
[379231579,1755201038472,-460.0,0.00017799,2]
[379231581,1755201038481,-460.0,0.00017799,2]
[379231583,1755201038490,-484.06,0.00017799,2]
[379231585,1755201038499,-460.0,0.00017799,2]
[379231587,1755201038508,-2429.45506687,0.000178,2]
[379231589,1755201038520,-1391.79,0.000178,2]
[379231592,1755201038533,-320.0,0.000178,2]
[379231731,1755201040090,-232.05637125,0.00017251,2]
[379231733,1755201040099,-47059.94362875,0.000178,2]
[379231943,1755201043293,-681.8757257,0.000178,2]
[379232232,1755201046131,-14183.31355285,0.000178,2]
[379232234,1755201046140,-460.0,0.00017871,2]
[379232236,1755201046149,-460.0,0.00017871,2]
[379232238,1755201046158,-500.0,0.00017873,2]
[379232240,1755201046167,-500.0,0.00017873,2]
[379232242,1755201046176,-179.13887267,0.00017873,2]
[379232244,1755201046185,-261.60064091,0.00017873,2]
[379232245,1755201046195,-500.0,0.00017873,2]
[379232247,1755201046204,-500.0,0.00017873,2]
[379232250,1755201046214,-500.0,0.00017873,2]
[379232251,1755201046224,-500.0,0.00017873,2]
[379232253,1755201046233,-500.0,0.00017873,2]
[379232255,1755201046242,-500.0,0.00017873,2]
[379232257,1755201046251,-500.0,0.00017873,2]
[379232259,1755201046262,-500.0,0.00017873,2]
[379232261,1755201046271,-200.0,0.00017874,2]
[379232263,1755201046281,-200.0,0.00017874,2]
[379232265,1755201046292,-200.0,0.00017874,2]
[379232268,1755201046301,-200.0,0.00017874,2]
[379232270,1755201046310,-200.0,0.00017874,2]
[379232272,1755201046320,-200.0,0.00017874,2]
[379232274,1755201046330,-452.84940637,0.00017874,2]
[379232276,1755201046339,-253.60804197,0.00017875,2]
[379232278,1755201046349,-67558.72376903,0.00017875,2]
[379232282,1755201046379,-29616.14575505,0.00017875,2]
[379232285,1755201046390,-4639.63674645,0.00017875,2]
[379232286,1755201046401,-678.92998736,0.00017875,2]
[379232287,1755201046412,-302.10002581,0.00017875,2]
[379232478,1755201381610,348.270685,0.00013699,2]
[379232537,1755202232479,-150.0,0.00017444,2]
[379232552,1755202232992,-150.0,0.00017444,2]
[379232554,1755202233004,-150.0,0.00017444,2]
[379232556,1755202233014,-408.0,0.00017444,2]
[379232559,1755202233025,-538.76103936,0.00017694,2]
[379232561,1755202233036,-500.0,0.00017773,2]
[379232563,1755202233046,-300.0,0.00017774,2]
[379232565,1755202233057,-316.99458446,0.00017774,2]
[379232567,1755202233068,-37.30129068,0.00017775,2]
[379232819,1755202238286,-39563.52775256,0.00017775,2]
[379232823,1755202240222,-58985.8282993,0.00017775,2]
[379233142,1755202243308,-111806.58935462,0.00017775,2]
[379233144,1755202243318,-461.9529908,0.00017793,2]
[379233147,1755202243328,-215.59581046,0.00017794,2]
[379233149,1755202243338,-160.0,0.00017794,2]
[379233151,1755202243348,-843.37884167,0.00017794,2]
[379233153,1755202243358,-232.05637125,0.00017794,2]
[379233155,1755202243368,-7815.10043534,0.00017794,2]
[379233157,1755202243379,-160.0,0.00017795,2]
[379233159,1755202243389,-850.67,0.00017798,2]
[379233160,1755202243399,-1217.41345559,0.00017871,4]
[379233161,1755202243409,-460.0,0.00017871,2]
[379233162,1755202243419,-460.0,0.00017871,2]
[379233163,1755202243428,-460.0,0.00017871,2]
[379233164,1755202243438,-500.0,0.00017873,2]
[379233165,1755202243448,-500.0,0.00017873,2]
[379233166,1755202243458,-500.0,0.00017873,2]
[379233167,1755202243468,-500.0,0.00017873,2]
[379233168,1755202243478,-460.0,0.00017874,2]
[379233169,1755202243488,-460.0,0.00017874,2]
[379233170,1755202243498,-264.1142934,0.00017874,2]
[379233171,1755202243508,-460.0,0.00017874,2]
[379233172,1755202243518,-460.0,0.00017874,2]
[379233173,1755202243528,-235.31838049,0.00017874,2]
[379233174,1755202243538,-460.0,0.00017874,2]
[379233175,1755202243548,-460.0,0.00017874,2]
[379233176,1755202243558,-598.68,0.00017874,2]
[379233177,1755202243567,-460.0,0.00017874,2]
[379233178,1755202243577,-460.0,0.00017874,2]
[379233179,1755202243587,-527.86851886,0.00017874,2]
[379233180,1755202243597,-460.0,0.00017874,2]
[379233181,1755202243606,-460.0,0.00017874,2]
[379233183,1755202243616,-460.0,0.00017874,2]
[379233185,1755202243627,-460.0,0.00017874,2]
[379233186,1755202243637,-158.9188682,0.00017874,2]
[379233187,1755202243647,-363.75675346,0.00017874,2]
[379233188,1755202243656,-460.0,0.00017874,2]
[379233189,1755202243666,-564.99,0.00017874,2]
[379233190,1755202243676,-168.0,0.00017953,2]
[379233191,1755202243685,-168.0,0.00017966,2]
[379233192,1755202243694,-460.0,0.00017971,2]
[379233193,1755202243704,-460.0,0.00017971,2]
[379233195,1755202243714,-168.0,0.00017974,2]
[379233197,1755202243724,-168.0,0.00017992,2]
[379233199,1755202243734,-460.0,0.00017999,2]
[379233201,1755202243743,-460.0,0.00017999,2]
[379233203,1755202243754,-579.9998201,0.00018,2]
[379233206,1755202243765,-580.2983639,0.00018,2]
[379233208,1755202243776,-308.6137388,0.00018,2]
[379233210,1755202243786,-580.2983639,0.00018,2]
[379233212,1755202243796,-51861.14988642,0.00018,2]
[379233424,1755202275515,54294.16258358,0.00016,2]
[379233425,1755202345717,330.85715,0.00013699,2]
[379233456,1755202643964,529.0,0.00016438,2]
[379233462,1755203267519,314.314292,0.00013699,2]
[379233508,1755203438495,-300.0,0.00016705,2]
[379233559,1755203439007,-22312.83557882,0.00016706,2]
[379233561,1755203439019,-12328.9006517,0.00016706,2]
[379233563,1755203439028,-879.11678659,0.00017213,2]
[379233565,1755203439037,-250.0,0.00017313,2]
[379233567,1755203439046,-408.0,0.00017545,2]
[379233569,1755203439056,-179.91004498,0.000176,2]
[379233571,1755203439065,-160.0,0.00017762,2]
[379233573,1755203439074,-17842.522448,0.00017763,2]
[379233575,1755203439083,-151.8381875,0.00017763,2]
[379233577,1755203439092,-151.0,0.00017763,2]
[379233579,1755203439101,-151.0,0.00017763,2]
[379233581,1755203439110,-151.0,0.00017763,2]
[379233583,1755203439119,-151.0,0.00017763,2]
[379233585,1755203439128,-151.0,0.00017763,2]
[379233587,1755203439137,-151.0,0.00017763,2]
[379233589,1755203439146,-151.0,0.00017763,2]
[379233591,1755203439155,-151.0,0.00017763,2]
[379233593,1755203439164,-151.0,0.00017763,2]
[379233595,1755203439173,-151.0,0.00017763,2]
[379233597,1755203439182,-286.15995431,0.00017763,2]
[379233599,1755203439192,-500.0,0.00017763,2]
[379233601,1755203439201,-500.0,0.00017763,2]
[379233603,1755203439210,-500.0,0.00017763,2]
[379233605,1755203439220,-500.0,0.00017763,2]
[379233607,1755203439229,-500.0,0.00017763,2]
[379233609,1755203439238,-500.0,0.00017763,2]
[379233611,1755203439247,-500.0,0.00017763,2]
[379233613,1755203439258,-500.0,0.00017763,2]
[379233615,1755203439267,-500.0,0.00017763,2]
[379233617,1755203439276,-500.0,0.00017763,2]
[379233619,1755203439285,-500.0,0.00017763,2]
[379233621,1755203439294,-500.0,0.00017763,2]
[379233623,1755203439303,-500.0,0.00017763,2]
[379233625,1755203439312,-500.0,0.00017763,2]
[379233627,1755203439321,-500.0,0.00017763,2]
[379233629,1755203439330,-500.0,0.00017763,2]
[379233631,1755203439339,-500.0,0.00017763,2]
[379233633,1755203439348,-460.0,0.00017771,2]
[379233635,1755203439357,-460.0,0.00017771,2]
[379233637,1755203439366,-460.0,0.00017771,2]
[379233638,1755203439374,-460.0,0.00017771,2]
[379233640,1755203439383,-528.19044044,0.00017771,2]
[379233642,1755203439392,-215.59581046,0.00017771,2]
[379233644,1755203439402,-461.9529908,0.00017772,2]
[379233646,1755203439411,-160.0,0.00017772,2]
[379233648,1755203439420,-160.0,0.00017772,2]
[379233650,1755203439429,-160.0,0.00017772,2]
[379233652,1755203439438,-160.0,0.00017772,2]
[379233654,1755203439448,-417.15472785,0.00017772,2]
[379233656,1755203439461,-460.0,0.00017774,2]
[379233658,1755203439470,-460.0,0.00017774,2]
[379233660,1755203439479,-460.0,0.00017774,2]
[379233662,1755203439488,-460.0,0.00017774,2]
[379233664,1755203439497,-328.51432903,0.00017774,2]
[379233666,1755203439506,-388.90549991,0.00017774,2]
[379233668,1755203439515,-460.0,0.00017774,2]
[379233670,1755203439524,-460.0,0.00017774,2]
[379233672,1755203439534,-460.0,0.00017774,2]
[379233674,1755203439546,-257.67,0.00017774,2]
[379233676,1755203439554,-460.0,0.00017774,2]
[379233678,1755203439564,-538.32,0.00017774,2]
[379233680,1755203439573,-460.0,0.00017774,2]
[379233682,1755203439582,-460.0,0.00017774,2]
[379233684,1755203439591,-460.0,0.00017774,2]
[379233686,1755203439601,-460.0,0.00017774,2]
[379233688,1755203439610,-460.0,0.00017774,2]
[379233690,1755203439621,-460.0,0.00017774,2]
[379233692,1755203439630,-460.0,0.00017774,2]
[379233694,1755203439639,-843.37884167,0.00017794,2]
[379233696,1755203439648,-232.05637125,0.00017794,2]
[379233698,1755203439657,-460.0,0.00017799,2]
[379233700,1755203439666,-331.43368139,0.00017871,2]
[379233702,1755203439675,-460.0,0.00017874,2]
[379233704,1755203439684,-460.0,0.00017874,2]
[379233706,1755203439693,-460.0,0.00017874,2]
[379233708,1755203439702,-460.0,0.00017874,2]
[379233710,1755203439711,-520.43,0.00017874,2]
[379233712,1755203439720,-460.0,0.00017874,2]
[379233714,1755203439729,-506.61,0.00017874,2]
[379233716,1755203439738,-460.0,0.00017874,2]
[379233718,1755203439748,-460.0,0.00017874,2]
[379233720,1755203439756,-460.0,0.00017874,2]
[379233722,1755203439765,-460.0,0.00017874,2]
[379233724,1755203439774,-460.0,0.00017874,2]
[379233725,1755203439783,-460.0,0.00017874,2]
[379233728,1755203439792,-460.0,0.00017874,2]
[379233729,1755203439801,-460.0,0.00017874,2]
[379233731,1755203439811,-670.0,0.00017874,2]
[379233734,1755203439821,-460.0,0.00017998,2]
[379233736,1755203439830,-509.71,0.00017998,2]
[379233738,1755203439839,-460.0,0.00017998,2]
[379233740,1755203439848,-516.72288427,0.00017998,2]
[379233742,1755203439857,-460.0,0.00017998,2]
[379233744,1755203439867,-460.0,0.00017998,2]
[379233746,1755203439876,-460.0,0.00017998,2]
[379233748,1755203439885,-460.0,0.00017998,2]
[379233750,1755203439894,-460.0,0.00017998,2]
[379233752,1755203439903,-460.0,0.00017998,2]
[379233754,1755203439912,-460.0,0.00017998,2]
[379233755,1755203439922,-990.07,0.00017999,2]
[379233757,1755203439931,-460.0,0.00017999,2]
[379233759,1755203439941,-1021.141792,0.00018,2]
[379233761,1755203439950,-422.03,0.00018045,2]
[379233764,1755203439960,-13.32997433,0.00018045,2]
[379233767,1755203439977,-160.0,0.00017772,2]
[379233769,1755203439987,-446.67002567,0.00018045,2]
[379233771,1755203439997,-460.0,0.00018045,2]
[379233773,1755203440006,-460.0,0.00018047,2]
[379233776,1755203440015,-460.0,0.00018047,2]
[379233779,1755203440026,-460.0,0.00018047,2]
[379233781,1755203440035,-460.0,0.00018047,2]
[379233783,1755203440044,-460.0,0.00018047,2]
[379233785,1755203440053,-460.0,0.00018047,2]
[379233787,1755203440062,-460.0,0.00018047,2]
[379233789,1755203440071,-460.0,0.00018047,2]
[379233791,1755203440080,-460.0,0.00018047,2]
[379233793,1755203440090,-460.0,0.00018047,2]
[379233795,1755203440099,-460.0,0.00018047,2]
[379233797,1755203440108,-595.55,0.00018048,2]
[379233799,1755203440118,-460.0,0.00018048,2]
[379233801,1755203440127,-460.0,0.00018048,2]
[379233803,1755203440137,-460.0,0.00018048,2]
[379233805,1755203440146,-460.0,0.00018071,2]
[379233807,1755203440155,-460.0,0.00018071,2]
[379233809,1755203440164,-446.0263154,0.00018071,2]
[379233845,1755203440509,-13.9736846,0.00018071,2]
[379233847,1755203440518,-460.0,0.00018071,2]
[379233849,1755203440528,-224.05817935,0.00018071,2]
[379233854,1755203440565,-235.94182065,0.00018071,2]
[379233856,1755203440575,-92.48775573,0.00018071,2]
[379233858,1755203440586,-367.51224427,0.00018071,2]
[379233860,1755203440595,-3.37675373,0.00018072,2]
[379234390,1755203446511,-367.67028001,0.00017999,2]
[379234409,1755203489998,1950.0,0.00016438,2]
[379234418,1755204166263,298.598577,0.00013699,2]
[379234420,1755204190158,151.0,0.000164,3]
[379234421,1755204218133,463.55531042,0.000175,14]
[379234424,1755204331105,-544.54,0.00016705,2]
[379234425,1755204331630,-329.79,0.00016705,2]
[379234426,1755204331652,-460.0,0.00016705,2]
[379234427,1755204331672,-460.0,0.00016705,2]
[379234428,1755204331701,-584.19,0.00016705,2]
[379234429,1755204331723,-460.0,0.00016705,2]
[379234430,1755204331745,-630.23,0.00016705,2]
[379234431,1755204331769,-460.0,0.00016705,2]
[379234432,1755204331791,-460.0,0.00016705,2]
[379234433,1755204331811,-460.0,0.00016705,2]
[379234434,1755204331831,-460.0,0.00016979,2]
[379234435,1755204331851,-630.23,0.00016979,2]
[379234436,1755204331870,-460.0,0.00016979,2]
[379234437,1755204331891,-460.0,0.00017253,2]
[379234438,1755204331911,-630.23,0.00017253,2]
[379234439,1755204331933,-460.0,0.00017253,2]
[379234440,1755204331956,-460.0,0.00017527,2]
[379234441,1755204331977,-630.23,0.00017527,2]
[379234442,1755204331996,-460.0,0.00017527,2]
[379234443,1755204332017,-292.06215301,0.00017612,2]
[379234444,1755204332039,-200.0,0.00017663,2]
[379234445,1755204332062,-200.0,0.00017663,2]
[379234446,1755204332088,-200.0,0.00017663,2]
[379234447,1755204332113,-200.0,0.00017663,2]
[379234448,1755204332138,-200.0,0.00017663,2]
[379234449,1755204332161,-200.0,0.00017663,2]
[379234450,1755204332181,-408.0,0.00017681,2]
[379234451,1755204332200,-587.2875172,0.0001771,2]
[379234452,1755204332219,-293.6437586,0.0001771,2]
[379234453,1755204332239,-538.7496428,0.0001771,2]
[379234454,1755204332260,-460.0,0.00017771,2]
[379234455,1755204332280,-460.0,0.00017771,2]
[379234456,1755204332300,-232.05637125,0.00017771,2]
[379234457,1755204332321,-160.0,0.00017771,2]
[379234458,1755204332340,-160.0,0.00017772,2]
[379234459,1755204332361,-460.0,0.00017774,2]
[379234460,1755204332382,-293.6437586,0.000178,2]
[379234461,1755204332404,-486.26793822,0.00017801,2]
[379234462,1755204332424,-630.23,0.00017801,2]
[379234463,1755204332444,-460.0,0.00017801,2]
[379234464,1755204332463,-843.37884167,0.00017871,2]
[379234465,1755204332484,-293.6437586,0.000179,2]
[379234466,1755204332508,-948.82,0.00017998,2]
[379234467,1755204332529,-460.0,0.00017998,2]
[379234468,1755204332551,-460.0,0.00018045,2]
[379234469,1755204332573,-460.0,0.00018045,2]
[379234470,1755204332593,-483.43,0.00018047,2]
[379234471,1755204332614,-460.0,0.00018048,2]
[379234472,1755204332635,-516.23257177,0.00018071,2]
[379234473,1755204332656,-481.45,0.00018071,2]
[379234474,1755204332681,-630.23,0.00018075,2]
[379234475,1755204332703,-460.0,0.00018075,2]
[379234476,1755204332725,-769.22718824,0.00018204,2]
[379234477,1755204332746,-460.0,0.0001824,2]
[379234478,1755204332928,-460.0,0.0001824,2]
[379234479,1755204332951,-460.0,0.0001824,2]
[379234480,1755204332973,-168.0,0.00018241,2]
[379234481,1755204332995,-460.0,0.00018271,2]
[379234482,1755204333019,-460.0,0.00018271,2]
[379234483,1755204333040,-642.0,0.00018272,2]
[379234484,1755204333064,-948.82,0.00018272,2]
[379234485,1755204333086,-460.0,0.00018272,2]
[379234486,1755204333108,-460.0,0.00018287,2]
[379234487,1755204333130,-460.0,0.00018287,2]
[379234488,1755204333152,-250.41463105,0.00018287,2]
[379234489,1755204333173,-151.0,0.00018287,2]
[379234490,1755204333196,-151.0,0.00018287,2]
[379234491,1755204333218,-151.0,0.00018287,2]
[379234492,1755204333239,-151.0,0.00018287,2]
[379234493,1755204333260,-151.0,0.00018287,2]
[379234494,1755204333282,-460.0,0.00018287,2]
[379234495,1755204333305,-460.0,0.00018287,2]
[379234496,1755204333327,-815.979,0.00018289,2]
[379234497,1755204333349,-2200.0,0.00018289,2]
[379234498,1755204333371,-168.0,0.00018304,2]
[379234499,1755204333392,-460.0,0.00018319,2]
[379234500,1755204333415,-500.98881317,0.00018319,2]
[379234501,1755204333436,-483.43,0.00018321,2]
[379234502,1755204333458,-460.0,0.00018322,2]
[379234503,1755204333481,-630.23,0.00018349,2]
[379234504,1755204333505,-223.33270872,0.00018349,2]
[379234505,1755204333530,-168.0,0.00018477,2]
[379234506,1755204333553,-168.0,0.00018487,2]
[379234507,1755204333574,-1000.0,0.000185,2]
[379234508,1755204333595,-460.0,0.00018514,2]
[379234509,1755204333616,-460.0,0.00018514,2]
[379234510,1755204333640,-450.0747577,0.00018514,2]
[379234511,1755204333663,-460.0,0.00018545,2]
[379234512,1755204333687,-460.0,0.00018545,2]
[379234513,1755204333711,-642.0,0.00018546,2]
[379234514,1755204333736,-948.82,0.00018546,2]
[379234515,1755204333759,-460.0,0.00018546,2]
[379234516,1755204333782,-168.0,0.00018551,2]
[379234517,1755204333803,-198.0,0.00018561,2]
[379234518,1755204333824,-151.0,0.00018561,2]
[379234519,1755204333844,-295.24546373,0.00018561,2]
[379234520,1755204333867,-255.46,0.00018561,2]
[379234521,1755204333889,-460.0,0.00018561,2]
[379234522,1755204333910,-460.0,0.00018593,2]
[379234523,1755204333932,-483.43,0.00018595,2]
[379234524,1755204333954,-460.0,0.00018596,2]
[379234525,1755204333976,-630.23,0.00018623,2]
[379234526,1755204333998,-168.0,0.00018717,2]
[379234527,1755204334020,-168.0,0.0001872,2]
[379234528,1755204334040,-166.0,0.00018739,2]
[379234529,1755204334061,-166.0,0.00018739,2]
[379234530,1755204334081,-166.0,0.00018739,2]
[379234531,1755204334101,-166.0,0.00018739,2]
[379234532,1755204334122,-166.0,0.00018739,2]
[379234533,1755204334142,-166.0,0.00018739,2]
[379234534,1755204334163,-172.0,0.00018739,2]
[379234535,1755204334185,-460.0,0.00018788,2]
[379234536,1755204334206,-460.0,0.00018788,2]
[379234537,1755204334229,-460.0,0.00018819,2]
[379234538,1755204334252,-460.0,0.00018819,2]
[379234539,1755204334273,-642.0,0.0001882,2]
[379234540,1755204334296,-948.82,0.0001882,2]
[379234541,1755204334318,-205.91,0.0001882,2]
[379234542,1755204334339,-460.0,0.00018835,2]
[379234543,1755204334360,-460.0,0.00018867,2]
[379234544,1755204334382,-483.43,0.00018869,2]
[379234545,1755204334404,-460.0,0.0001887,2]
[379234546,1755204334425,-630.23,0.00018897,2]
[379234547,1755204334445,-3713.12384194,0.000189,2]
[379234548,1755204334466,-168.0,0.00018914,2]
[379234549,1755204334487,-168.0,0.00018927,2]
[379234550,1755204334511,-168.0,0.00018951,2]
[379234551,1755204334533,-151.0,0.00018967,2]
[379234552,1755204334556,-151.0,0.00018967,2]
[379234553,1755204334579,-169.11624,0.00018967,2]
[379234554,1755204334601,-169.11624,0.00018967,2]
[379234555,1755204334622,-151.0,0.00018967,2]
[379234556,1755204334643,-151.0,0.00018967,2]
[379234557,1755204334663,-151.0,0.00018967,2]
[379234558,1755204334687,-151.0,0.00018967,2]
[379234559,1755204334707,-151.0,0.00018967,2]
[379234560,1755204334728,-151.0,0.00018967,2]
[379234561,1755204334749,-151.0,0.00018967,2]
[379234562,1755204334777,-160.0,0.0001897,2]
[379234563,1755204334798,-160.35483779,0.0001897,2]
[379234564,1755204334819,-326.0,0.0001897,2]
[379234565,1755204334839,-326.0,0.0001897,2]
[379234566,1755204334859,-326.0,0.0001897,2]
[379234567,1755204334879,-326.0,0.0001897,2]
[379234568,1755204334900,-326.0,0.0001897,2]
[379234569,1755204334920,-326.0,0.0001897,2]
[379234570,1755204334940,-326.0,0.0001897,2]
[379234571,1755204334960,-471.32695641,0.0001897,2]
[379234572,1755204334979,-159.26549415,0.00019,20]
[379234573,1755204334999,-1000.0,0.00019,2]
[379234574,1755204335021,-460.0,0.00019062,2]
[379234575,1755204335042,-460.0,0.00019062,2]
[379234576,1755204335063,-460.0,0.00019093,2]
[379234577,1755204335085,-460.0,0.00019093,2]
[379234578,1755204335104,-642.0,0.00019094,2]
[379234579,1755204335128,-948.82,0.00019094,2]
[379234580,1755204335150,-168.0,0.00019103,2]
[379234581,1755204335171,-460.0,0.00019109,2]
[379234582,1755204335192,-9468.24634107,0.0001913,2]
[379234583,1755204335212,-460.0,0.00019141,2]
[379234584,1755204335233,-483.43,0.00019143,2]
[379234585,1755204335257,-460.0,0.00019144,2]
[379234586,1755204335277,-630.23,0.00019171,2]
[379234587,1755204335296,-151.0,0.00019178,2]
[379234588,1755204335315,-151.0,0.00019178,2]
[379234589,1755204335335,-185.05427938,0.00019178,2]
[379234590,1755204335356,-666.0,0.00019178,2]
[379234591,1755204335377,-151.0,0.000192,2]
[379234592,1755204335399,-182.126774,0.000192,2]
[379234593,1755204335420,-182.126774,0.000192,2]
[379234594,1755204335440,-151.0,0.000192,2]
[379234595,1755204335461,-151.0,0.000192,2]
[379234596,1755204335480,-151.0,0.000192,2]
[379234597,1755204335500,-151.0,0.000192,2]
[379234598,1755204335522,-151.0,0.000192,2]
[379234599,1755204335542,-151.0,0.000192,2]
[379234600,1755204335562,-151.0,0.000192,2]
[379234601,1755204335581,-3000.0,0.000192,2]
[379234602,1755204335602,-3000.0,0.000192,2]
[379234603,1755204335623,-3000.0,0.000192,2]
[379234604,1755204335644,-151.0,0.0001923,2]
[379234605,1755204335663,-223.356409,0.0001923,2]
[379234606,1755204335684,-151.0,0.0001923,2]
[379234607,1755204335707,-151.0,0.0001923,2]
[379234608,1755204335728,-151.0,0.00019241,2]
[379234609,1755204335749,-151.0,0.00019241,2]
[379234610,1755204335771,-151.0,0.00019253,2]
[379234611,1755204335791,-151.0,0.00019253,2]
[379234612,1755204335812,-169.11624,0.00019253,2]
[379234613,1755204335833,-169.11624,0.00019253,2]
[379234614,1755204335855,-500.0,0.0001929,2]
[379234615,1755204335875,-500.0,0.0001929,2]
[379234616,1755204335895,-500.0,0.0001929,2]
[379234617,1755204335915,-500.0,0.0001929,2]
[379234618,1755204335935,-431.00883148,0.00019315,2]
[379234619,1755204335957,-168.0,0.0001933,2]
[379234620,1755204335978,-460.0,0.00019336,2]
[379234621,1755204335999,-460.0,0.00019336,2]
[379234622,1755204336023,-460.0,0.00019367,2]
[379234623,1755204336045,-460.0,0.00019367,2]
[379234624,1755204336065,-642.0,0.00019368,2]
[379234625,1755204336087,-948.82,0.00019368,2]
[379234626,1755204336108,-460.0,0.00019383,2]
[379234627,1755204336131,-168.0,0.00019388,2]
[379234628,1755204336153,-168.0,0.00019399,2]
[379234629,1755204336180,-200.0,0.00019402,20]
[379234630,1755204336204,-200.0,0.00019402,20]
[379234631,1755204336228,-200.0,0.00019402,20]
[379234632,1755204336252,-200.0,0.00019402,20]
[379234633,1755204336276,-200.0,0.00019402,20]
[379234634,1755204336300,-200.0,0.00019402,20]
[379234635,1755204336325,-200.0,0.00019402,20]
[379234636,1755204336350,-280.0,0.00019402,20]